Cogmind - Beta 12 @@@ ROGUE MODE // 2023.11.02 @ 01:27:38 Player: FrostySpirit Result: Destroyed by D-53 Grenadier with Mini Grenade Launcher Performance ------------- Evolutions (0) 0 Regions Visited (4) 800 Robots Destroyed (4) 20 Value Destroyed (40) 40 Prototype IDs (3) 60 Alien Tech Used (0) 0 Bonus (300) 300 TOTAL SCORE: 1220 Bonus ------- Aligned with FarCom 300 Cogmind --------- Core Integrity 0/250 Matter 400/400 Energy 100/100 System Corruption 0% Temperature Cool (0) Movement Core (200) Ox3 Location -9/Mines Parts ------- > --- POWER (1) -------- (None) > --- PROPULSION (2) --- (None) > --- UTILITY (2) ------ Medium Storage Unit Medium Matter Pod > --- WEAPON (2) ------- (None) > --- INVENTORY (10) --- Small Storage Unit Large Storage Unit Humpback Humpback High-capacity Matter Pod (21) Skeleton Box Mining Laser Peak State ------------ > --- POWER ------------ Ion Engine > --- PROPULSION ------- Light Treads Light Treads > --- UTILITY ---------- Superbattery > --- WEAPON ----------- (None) > --- INVENTORY -------- Flight Unit Flight Unit Small Storage Unit [Rating: 13] Favorites ----------- Power Ion Engine Engine Ion Engine Propulsion Aluminum Leg Treads Light Treads Leg Aluminum Leg Utility Medium Storage Unit Device Skeleton Box Storage Medium Storage Unit Weapon Light Assault Rifle Energy Gun Medium Laser Ballistic Gun Light Assault Rifle Special Weapon Field Lobotomy Kit Build | -11 -10 -10 -10 -9 ------- Run | Jun Mat Min Exi Min Slots Evolved . | . . . . . Power . | . . . . . Propulsion . | . . . . . Utility . | . . . . . Weapon . | . . . . . Parts Attached 20 | 8 1 1 9 1 Power 3 | 2 . . . 1 Engine 3 | 2 . . . 1 Core . | . . . . . Reactor . | . . . . . Propulsion 4 | 2 . . 2 . Treads 2 | . . . 2 . Leg 2 | 2 . . . . Wheel . | . . . . . Hover . | . . . . . Flight . | . . . . . Utility 7 | 1 1 1 4 . Device 1 | . . . 1 . Storage 6 | 1 1 1 3 . Processor . | . . . . . Hackware . | . . . . . Protection . | . . . . . Artifact . | . . . . . Weapon 6 | 3 . . 3 . Energy Gun 3 | 2 . . 1 . Energy Cannon . | . . . . . Ballistic Gun 2 | 1 . . 1 . Ballistic Cannon . | . . . . . Launcher . | . . . . . Special Weapon 1 | . . . 1 . Impact Weapon . | . . . . . Slashing Weapon . | . . . . . Piercing Weapon . | . . . . . Special Melee Weapon . | . . . . . Unidentified Prototypes 3 | . . . 3 . Parts Lost 6 | . . . . 6 Power 2 | . . . . 2 Propulsion 2 | . . . . 2 Utility . | . . . . . Weapon 2 | . . . . 2 Highest Loss Streak 6 | . . . . 6 To Critical Strikes . | . . . . . Average Slot Usage (%) 94 | . 93 98 93 90 Engine 13 | . 14 14 14 12 Treads 11 | . . . 17 26 Leg 16 | . 28 28 10 . Storage 25 | . 21 26 25 28 Energy Gun 12 | . 14 14 12 8 Ballistic Gun 13 | . 14 14 12 12 Naked Turns . | . . . . . Heaviest Build 23 | 13 23 20 20 20 Greatest Support 40 | 20 20 20 40 40 Greatest Overweight (x) 3 | . 1 . . 3 Average Overweight (x) . | . . . . . Largest Inventory Capacity 10 | 8 10 10 10 10 Average Capacity 9 | 7 9 10 9 10 Most Carried 10 | 5 7 9 10 10 Average Carried 7 | 3 4 7 7 9 Final Capacity 10 | 8 10 10 10 10 Final Carried 9 | 4 7 9 9 9 Class Distribution -------------------- 100% | Mutant Dominant Class ---------------- Mutant | -10/Materials Mutant | -10/Mines Mutant | -10/Exiles Mutant | -9/Mines Resources | -11 -10 -10 -10 -9 ----------- Run | Jun Mat Min Exi Min Matter Collected 505 | 223 . 83 . 199 Remotely . | . . . . . Salvage Created 53 | . . 53 . . Parts 4 | . . 4 . . Haulers Intercepted . | . . . . . Recyclers Shooed 1 | . . 1 . . Parts Field Recycled . | . . . . . Retrieved Matter . | . . . . . Parts Self-Destructed . | . . . . . Prevented . | . . . . . Kills | -11 -10 -10 -10 -9 ------- Run | Jun Mat Min Exi Min Combat Hostiles Destroyed 4 | . . 4 . . Guns 4 | . . 4 . . Classes Destroyed 1 | . . 1 . . Swarmer 4 | . . 4 . . Best Kill Streak 2 | . . 2 . . Combat Bots Only 2 | . . 2 . . Max Kills in Single Turn 1 | . . 1 . . Gunslinging . | . . . . . Exploded . | . . . . . Melee . | . . . . . Uniques/NPCs Destroyed . | . . . . . Combat | -11 -10 -10 -10 -9 -------- Run | Jun Mat Min Exi Min Damage Taken 1015 | . . 169 45 801 Core 280 | . . 29 . 251 Absorbed by Shields . | . . . . . Core Remaining (%) 100 | 100 . . . . Volleys Fired 15 | . 1 14 . . Largest 2 | . 2 2 . . Hottest 70 | . 70 70 . . Shots Fired 30 | . 2 28 . . Gun 30 | . 2 28 . . Cannon . | . . . . . Launcher . | . . . . . Special . | . . . . . Kinetic 15 | . 1 14 . . Thermal 15 | . 1 14 . . Explosive . | . . . . . Electromagnetic . | . . . . . Robot Hit Streak 2 | . 1 2 . . Robot Miss Streak 5 | . 1 5 . . Penetration Max . | . . . . . Secondary Targets 1 | . . 1 . . Max Gunslinging Chain 1 | . . 1 . . Shots Hit Robots 11 | . 1 10 . . Core Hits 4 | . . 4 . . Critical Kills . | . . . . . Critical Parts Destroyed . | . . . . . Critical Strikes 1 | . . 1 . . Burn 1 | . . 1 . . Melee Attacks . | . . . . . Impact . | . . . . . Slashing . | . . . . . Piercing . | . . . . . Sneak Attacks . | . . . . . Combat Hostiles . | . . . . . Follow-up Attacks . | . . . . . Damage Inflicted 110 | . 7 103 . . Guns 110 | . 7 103 . . Cannons . | . . . . . Explosions . | . . . . . Melee . | . . . . . Ramming . | . . . . . Kinetic 60 | . 7 53 . . Thermal 50 | . . 50 . . Explosive . | . . . . . Electromagnetic . | . . . . . Impact . | . . . . . Slashing . | . . . . . Piercing . | . . . . . Highest Corruption . | . . . . . Average Corruption . | . . . . . Corruption Purged . | . . . . . Corruption Blocked . | . . . . . Overload Shots . | . . . . . Overflow Damage . | . . . . . Projectiles . | . . . . . Explosions . | . . . . . Melee . | . . . . . Knockbacks . | . . . . . Impact . | . . . . . Kinetic . | . . . . . Secondary . | . . . . . Self-Inflicted Damage . | . . . . . Shots . | . . . . . Rammed . | . . . . . Targets Rammed . | . . . . . Kicked . | . . . . . Crushed . | . . . . . Highest Temperature 110 | . 30 110 . 2 Average Temperature 32 | . 18 40 . 2 Received Heat Transfer 280 | . . . . 280 Siege Activations . | . . . . . Robots Corrupted . | . . . . . Combat Hostiles . | . . . . . Parts Fried . | . . . . . Impact Corruptions . | . . . . . Robots Melted . | . . . . . Combat Hostiles . | . . . . . Parts Melted . | . . . . . Heat Transferred 222 | . . 222 . . Parts Sabotaged . | . . . . . Parts Stolen . | . . . . . Parts Stripped . | . . . . . Power Chain Reactions . | . . . . . Missiles Intercepted . | . . . . . Alert | -11 -10 -10 -10 -9 ------- Run | Jun Mat Min Exi Min Peak Influence 195 | . 14 195 . 15 Initial 5 | . . 5 . . Average 34 | . 11 89 . 1 Maximum Alert Level . | . . . . . Low Security (%) 100 | 100 100 100 . 100 Level 1 . | . . . . . Level 2 . | . . . . . Level 3 . | . . . . . Level 4 . | . . . . . Level 5 . | . . . . . High Security . | . . . . . Max Security . | . . . . . Squads Dispatched . | . . . . . Investigation . | . . . . . Extermination . | . . . . . Reinforcement . | . . . . . Assault . | . . . . . Garrison . | . . . . . Intercept . | . . . . . Searches Triggered . | . . . . . Construction Impeded . | . . . . . Haulers Reinforced . | . . . . . Active Scanning Responses . | . . . . . Cargo Convoy Interrupts . | . . . . . Stealth | -11 -10 -10 -10 -9 --------- Run | Jun Mat Min Exi Min Distress Signals . | . . . . . Communications Jammed . | . . . . . Distress Signals . | . . . . . Times Spotted 18 | . 1 8 1 8 Peak Tracking Total 7 | . 1 3 1 7 Tactical Retreats 2 | . . 2 . . Traps | -11 -10 -10 -10 -9 ------- Run | Jun Mat Min Exi Min Traps Triggered . | . . . . . Indirectly . | . . . . . Trap Hack Attempts . | . . . . . Triggered . | . . . . . Disarmed . | . . . . . Reprogrammed . | . . . . . Reused . | . . . . . Traps Extracted . | . . . . . Installed . | . . . . . Triggered . | . . . . . Exploded 1 | . . . 1 . Machines | -11 -10 -10 -10 -9 ---------- Run | Jun Mat Min Exi Min Machines Disabled . | . . . . . Max in Single Turn . | . . . . . Machines Repaired . | . . . . . Machines Sabotaged . | . . . . . Overloaded Fab Kills . | . . . . . Hacking | -11 -10 -10 -10 -9 --------- Run | Jun Mat Min Exi Min Machines Accessed 2 | . 2 . . . Terminals 2 | . 2 . . . Fabricators . | . . . . . Repair Stations . | . . . . . Recycling Units . | . . . . . Scanalyzers . | . . . . . Garrison Access . | . . . . . Total Hacks 3 | . 3 . . . Successful 1 | . 1 . . . Failed 2 | . 2 . . . Catastrophic . | . . . . . Database Lockouts . | . . . . . Manual 1 | . . . 1 . Terminals 3 | . 3 . . . Fabricators . | . . . . . Repair Stations . | . . . . . Recycling Units . | . . . . . Scanalyzers . | . . . . . Garrison Access . | . . . . . Terminal Hacks 1 | . 1 . . . Zone Layout 1 | . 1 . . . Fabricator Hacks . | . . . . . Repair Station Hacks . | . . . . . Recycling Unit Hacks . | . . . . . Scanalyzer . | . . . . . Garrison Access Hacks . | . . . . . Unauthorized Hacks . | . . . . . Terminals . | . . . . . Fabricators . | . . . . . Repair Stations . | . . . . . Recycling Units . | . . . . . Scanalyzers . | . . . . . Garrison Access . | . . . . . Data Cores Recovered . | . . . . . Used . | . . . . . Hacking Detections 2 | . 2 . . . Full Trace Events . | . . . . . Feedback Events . | . . . . . Feedback Blocked . | . . . . . Robot Schematics Acquired . | . . . . . Robots Built . | . . . . . Authchips . | . . . . . Time . | . . . . . Total Robot Build Rating . | . . . . . Part Schematics Acquired . | . . . . . Parts Built . | . . . . . Authchips . | . . . . . Time . | . . . . . Total Part Build Rating . | . . . . . Parts Repaired . | . . . . . Time . | . . . . . Parts Recycled . | . . . . . Recycled Matter . | . . . . . Retrieved Matter . | . . . . . Retrieved Components . | . . . . . Parts Scanalyzed . | . . . . . Part Schematics Acquired . | . . . . . Parts Damaged . | . . . . . Bothacking | -11 -10 -10 -10 -9 ------------ Run | Jun Mat Min Exi Min Used RIF Installer . | . . . . . Robots Hacked . | . . . . . Non-combat . | . . . . . Combat . | . . . . . Robot Hacks Applied . | . . . . . Relay Couplers Released . | . . . . . Fabnet Peak Effective % . | . . . . . Robots Rewired . | . . . . . Allies Hacked . | . . . . . Hacks Repelled . | . . . . . Allies | -11 -10 -10 -10 -9 -------- Run | Jun Mat Min Exi Min Total Allies . | . . . . . Largest Group . | . . . . . Highest-Rated Group . | . . . . . Highest-Rated Ally . | . . . . . Total Orders . | . . . . . Ally Attacks . | . . . . . Total Damage . | . . . . . Kills . | . . . . . Allies Corrupted . | . . . . . Allies Melted . | . . . . . Intel | -11 -10 -10 -10 -9 ------- Run | Jun Mat Min Exi Min Robot Analysis Total . | . . . . . Derelict Logs Recovered 1 | . . 1 . . Drone Launches . | . . . . . Drone Recoveries . | . . . . . Exploration | -11 -10 -10 -10 -9 ------------- Run | Jun Mat Min Exi Min Turns Passed 1102 | 74 197 201 516 114 Spaces Moved 732 | 60 122 132 349 69 Core 22 | 21 . . . 1 Treads 256 | . . . 188 68 Legs 454 | 39 122 132 161 . Wheels . | . . . . . Hover . | . . . . . Flight . | . . . . . Fastest Speed 50 | 50 120 120 120 160 Average Speed 136 | 95 146 120 141 160 Slowest Speed 200 | 120 190 120 160 200 Overloaded Moves . | . . . . . Propulsion Burnouts . | . . . . . Robots Hopped . | . . . . . Cave-ins Triggered . | . . . . . Exploration Rate (%) 31 | 4 32 34 62 24 Regions Visited 4 Branch Regions 3 Pre-discovered Areas . | . . . . . Known Exits Taken . | . . . . . Unknown Exits Taken 4 | 1 1 1 1 . Scrap Searched 1 | . . 1 . . Spaces Dug . | . . . . . Terrain Destroyed . | . . . . . Melee . | . . . . . Projectile . | . . . . . AOE . | . . . . . Terrain Rammed . | . . . . . Walls Destroyed . | . . . . . Machines Disabled . | . . . . . Actions | -11 -10 -10 -10 -9 --------- Run | Jun Mat Min Exi Min Total 809 | 75 138 150 373 73 Wait 14 | . 12 . . 2 Move 728 | 59 121 131 348 69 Hop . | . . . . . Pick Up 19 | 7 3 3 5 1 Fast Attach 11 | 3 1 . 7 . Attach 7 | 3 . 1 2 1 Detach 1 | . . . 1 . Swap 2 | 2 . . . . Drop 12 | 1 . 1 10 . Fire 15 | . 1 14 . . Melee . | . . . . . Ram . | . . . . . Kick . | . . . . . Crush . | . . . . . Escape Stasis . | . . . . . Rewire . | . . . . . Trap . | . . . . . Miscellaneous . | . . . . . Route ------- -11/Junkyard -10/Materials -10/Mines -10/Exiles (discovered 2 exits: [*Min x2]) -9/Mines History --------- Turn | Location | Event 7 | -11/Junkyard | Discovered new exit (range 15) 75 | -11/Junkyard | Entered Materials 244 | -10/Materials | Discovered new exit (range 7) 272 | -10/Materials | Entered Mines 317 | -10/Mines | Build established: Mutant 441 | -10/Mines | Learned Materials security intel 466 | -10/Mines | Deemed a non-threat by the Exiles lab entrance 467 | -10/Mines | Discovered new exit (range 5) 473 | -10/Mines | Entered Exiles 493 | -10/Exiles | Discovered new exit (range 15) 513 | -10/Exiles | Met 8R-AWN 535 | -10/Exiles | Met EX-HEX 577 | -10/Exiles | Met EX-BIN 627 | -10/Exiles | Aligned with FarCom system 628 | -10/Exiles | Given EX-Vault access code 657 | -10/Exiles | Opened EX-Vault 683 | -10/Exiles | Found Prototype Storage 683 | -10/Exiles | Identified Superbattery 691 | -10/Exiles | Found Prototype Special Weapon 691 | -10/Exiles | Identified Field Lobotomy Kit 698 | -10/Exiles | Found Prototype Device 698 | -10/Exiles | Identified Skeleton Box 738 | -10/Exiles | Exiles lab attacked by MAIN.C 976 | -10/Exiles | Discovered new exit (range 10) 989 | -10/Exiles | Left Exiles lab with Skeleton Box 989 | -10/Exiles | Entered Mines 1032 | -9/Mines | Assembled infested the area 1037 | -9/Mines | Assisted by a Guerilla fighting off Assembled 1063 | -9/Mines | Core integrity fell below 50% 1099 | -9/Mines | Core integrity fell below 20% 1103 | -9/Mines | Destroyed by D-53 Grenadier with Mini Grenade Launcher Last Messages --------------- were wandering homeless, only there's no Warlord to save us!" 01032_ ALERT: Infestation in the mines, dispatching Demolisher response squad. 01037_ A derelict emerges from the shadows: "You need to get out of here! I've been tracking a group of Assembled to figure out where they're coming from, and they're closing on this area, come on!" 01051_ Med. Laser destroyed. 01063_ as-49283 destroyed. 01073_ Ion Engine destroyed. 01080_ J5-HVA destroyed. 01092_ Lgt. Assault Rifle destroyed. 01092_ Lgt. Ion Engine destroyed. 01097_ Lgt. Treads destroyed. 01097_ as-58420 destroyed. 01098_ as-42025 destroyed. 01100_ The unstable cave ceiling collapses. 01100_ as-41310 destroyed. 01101_ as-42054 destroyed. 01101_ as-94418 destroyed. 01102_ Lgt. Treads destroyed. Map ----- +----------------------------------------------------+ | ?????????????????????????????????????????????????? | | ?????????????????????????????????????????????????? | | ?????????????????????????????????????????????????? | | ?????????????????????????????????????????????????? | | ?????????????????????????????????????????????????? | | ?????????????????????????????????????????????????? | | ?????????????????????????????????????????????????? | | ?????????????????????????????????????????????????? | | ?????????????????????????????????????????????????? | | ?????????????????????????????????????????????????? | | ?????????????????????????????????????????????????? | | ?????????????????????????????????????????????????? | | ?????????????????????????????????????????????????? | | ?????????????????????????????????????????????????? | | ?????????????????????????????????????????????????? | | ?????????????????????????????????????????????????? | | ?????????????????????????????????????????????????? | | ???????????????######????????????????????????????? | | ??????????????## #???????????????????????????? | | ?????????????## ##?????????????????????????? | | ?????????????# #?????????????????????????? | | ?????????????# #?????????????????????????? | | ?????????????# #####?????????????????????? | | ?????###?????# # #?????????????????????? | | ????## ##???# #######???????????????? | | ???## ##??# < @ ????????? | | ??## ##### #?????????? | | ??# #### d ????????? | | ??# ## d* % ?????????? | | ??# = ?????????? | | ??## ## ### #??????????? | | ???## #?# """ #??# ??????????? | | ????###??# """ ##??# # ??????????? | | ?????????# """ ##??# ## ???????????? | | ?????????## % #??# ##? ???????????? | | ??????????## #??# ##??? ????????????? | | ???????????## #??# ##????? ????????????? | | ????????????# ##??## ?????????????????????? | | ????????????## ##????? ?????????????????????? | | ?????????????### #??????# ?????????????????????? | | ???????????????# ######??# ?????????????????????? | | ???????????????# #??????????????????????????? | | ???????????????###### #??????????????????????????? | | ????????????????????# #??????????????????????????? | | ????????????????????# #??????????????????????????? | | ????????????????????# ###????????????????????????? | | ????????????????????# #????????????????????????? | | ?????????########???### #????????????????????????? | | ?????????# #?????# #????????????????????????? | | ?????????# !! #?????# #????????????????????????? | +----------------------------------------------------+ Best States ------------- Heat Dissipation 25 Energy Generation 10 Energy Capacity 250 Matter Stores 400 Matter Capacity 400 Sight Range 16 Terrain Scan Density 10 Evasion (%) 55 Recoil Reduction 2 Item Schematics ----------------- None Robot Schematics ------------------ None Fabricated ------------ Nothing Alien Tech Used ----------------- None Achievements -------------- None Challenges ------------ None Game ------ Seed DecoderComponentSpecial Manual? 0 Play Time 00:11:52 Cumulative 24.4 hours Start 2023.11.02 @ 01:17:38 End 2023.11.02 @ 01:27:38 Sessions 1 Manual Loads 0 Difficulty Rogue Special Mode None Game No. 38 Rogue 38 Adventurer 0 Explorer 0 Win Type - Total 0 Types 0/0/0/0/0/0/0/0/0 Lore% 20 Gallery% 33 Achievement% 23 Wizard Run 0 Options --------- ASCII 0 Keyboard 0 Movement Mouse Keybinds 0 Fullscreen 1 Font 18/TerminusBold Map View 76x50 Tactical HUD 1 Map Filters NONE Filters NONE Steam 1 RUN: 0899f5e2-a2d5-4093-a353-a55dc2f2a1a4